fUSD/lending_fUSD_20250820
["ID","MTS","AMOUNT","RATE_DAILY","PERIOD"]
[380353557,1755700348909,-400.0,0.00031506,120]
[380353558,1755700348960,-1772.07,0.00031506,120]
[380353559,1755700349017,-921.14,0.00031506,120]
[380353560,1755700349070,-400.0,0.00031506,120]
[380353561,1755700349126,-573.52,0.00031506,120]
[380353562,1755700349179,-400.0,0.00031506,120]
[380353563,1755700349236,-1625.68,0.00031506,120]
[380353564,1755700349297,-1140.28,0.00031506,120]
[380353565,1755700349354,-400.0,0.00031506,120]
[380353566,1755700349408,-400.0,0.00031506,120]
[380353567,1755700349892,-400.0,0.00031506,120]
[380353568,1755700349947,-400.0,0.00031506,120]
[380353569,1755700349999,-976.21,0.00031506,120]
[380353570,1755700350053,-400.0,0.00031506,120]
[380353571,1755700350106,-400.0,0.00031506,120]
[380353572,1755700350158,-501.73,0.00031506,120]
[380353573,1755700350211,-502.41,0.00031506,120]
[380353574,1755700350265,-400.0,0.00031506,120]
[380353575,1755700350318,-400.0,0.00031506,120]
[380353576,1755700350370,-400.0,0.00031506,120]
[380353577,1755700350424,-400.0,0.00031506,120]
[380353578,1755700350476,-400.0,0.00031506,120]
[380353579,1755700350528,-400.0,0.00031506,120]
[380353580,1755700350582,-400.0,0.00031506,120]
[380353581,1755700350638,-903.31,0.00031506,120]
[380353582,1755700350692,-400.0,0.00031506,120]
[380353583,1755700350746,-573.62,0.00031506,120]
[380353584,1755700350800,-1141.69,0.00031506,120]
[380353585,1755700350855,-400.0,0.00031506,120]
[380353586,1755700350908,-300.0,0.00031506,120]
[380353587,1755700350963,-1225.46,0.00031506,120]
[380353588,1755700351017,-545.39,0.00031506,120]
[380353589,1755700351071,-761.89,0.00031506,120]
[380353590,1755700351132,-400.0,0.00031506,120]
[380353591,1755700351186,-931.87,0.00031506,120]
[380353592,1755700351254,-400.0,0.00031506,120]
[380353593,1755700351309,-400.0,0.00031506,120]
[380353594,1755700351382,-400.0,0.00031506,120]
[380353595,1755700351437,-400.0,0.00031506,120]
[380353596,1755700351495,-1169.7,0.00031506,120]
[380353597,1755700351552,-4533.1,0.00031506,120]
[380353598,1755700351607,-914.88,0.00031506,120]
[380353599,1755700351664,-400.0,0.00031506,120]
[380353600,1755700351720,-1282.63,0.00031506,120]
[380353601,1755700351771,-400.0,0.00031506,120]
[380353602,1755700351826,-1249.36,0.00031506,120]
[380353603,1755700351887,-2141.8,0.00031506,120]
[380353604,1755700351942,-400.0,0.00031506,120]
[380353605,1755700351997,-400.0,0.00031506,120]
[380353606,1755700352050,-400.0,0.00031506,120]
[380353607,1755700352103,-1045.46,0.00031506,120]
[380353608,1755700352156,-1386.91,0.00031506,120]
[380353609,1755700352211,-1366.18,0.00031506,120]
[380353610,1755700352265,-400.0,0.00031506,120]
[380353611,1755700352327,-4369.67,0.00031506,118]
[380353612,1755700352385,-887.06,0.00031506,120]
[380353613,1755700352441,-3084.34,0.00031506,120]
[380353614,1755700352496,-400.0,0.00031506,120]
[380353615,1755700352550,-3155.56,0.00031506,120]
[380353616,1755700352603,-411.95,0.00031506,120]
[380353617,1755700352659,-400.0,0.00031506,120]
[380353618,1755700352713,-1366.0,0.00031506,120]
[380353619,1755700352764,-400.0,0.00031506,120]
[380353620,1755700352817,-1989.14,0.00031506,120]
[380353621,1755700352869,-2031.89,0.00031506,120]
[380353622,1755700352920,-4840.69,0.00031506,120]
[380353623,1755700352972,-400.0,0.00031506,120]
[380353624,1755700353024,-1802.56,0.00031506,120]
[380353625,1755700353081,-400.0,0.00031506,120]
[380353626,1755700353141,-5946.94,0.00031506,120]
[380353627,1755700353194,-1561.46,0.00031506,120]
[380353628,1755700353252,-238.77350472,0.00031506,120]
[380353629,1755700353306,-400.0,0.00031506,120]
[380353630,1755700353362,-1674.47,0.00031506,120]
[380353631,1755700353416,-2996.41,0.00031506,120]
[380353632,1755700353469,-1105.06,0.00031506,120]
[380353633,1755700353520,-1254.33,0.00031506,120]
[380353634,1755700353572,-400.0,0.00031506,120]
[380353635,1755700353626,-743.26,0.00031506,120]
[380353636,1755700353680,-1106.69,0.00031506,120]
[380353637,1755700353735,-400.0,0.00031506,120]
[380353638,1755700353787,-1238.97,0.00031506,120]
[380353639,1755700353843,-3443.6,0.00031506,120]
[380353640,1755700353900,-1345.62,0.00031506,120]
[380353641,1755700353953,-472.37987928,0.00031506,120]
[380353642,1755700354009,-2005.04,0.00031506,120]
[380353643,1755700354066,-400.0,0.00031506,120]
[380353644,1755700354118,-1429.3,0.00031506,120]
[380353645,1755700354172,-1833.47,0.00031506,120]
[380353646,1755700354229,-1430.18,0.00031506,120]
[380353647,1755700354279,-400.0,0.00031506,120]
[380353648,1755700354328,-400.0,0.00031506,120]
[380353649,1755700354380,-400.0,0.00031506,120]
[380353650,1755700354431,-400.0,0.00031506,120]
[380353651,1755700354482,-451.95,0.00031506,120]
[380353652,1755700354536,-1965.19,0.00031506,120]
[380353653,1755700354587,-400.0,0.00031506,120]
[380353654,1755700354639,-400.0,0.00031506,120]
[380353655,1755700354692,-400.0,0.00031506,120]
[380353656,1755700354743,-1775.23,0.00031506,120]
[380353657,1755700354793,-2149.65,0.00031506,120]
[380353658,1755700354851,-1318.6,0.00031506,120]
[380353659,1755700354901,-400.0,0.00031506,120]
[380353660,1755700354952,-529.75,0.00031506,120]
[380353661,1755700355001,-1078.84,0.00031506,120]
[380353662,1755700355052,-1324.97,0.00031506,120]
[380353663,1755700355104,-1907.19,0.00031506,120]
[380353664,1755700355156,-614.17,0.00031506,120]
[380353665,1755700355209,-1562.49,0.00031506,120]
[380353666,1755700355260,-400.0,0.00031506,120]
[380353667,1755700355315,-539.27936712,0.00031506,120]
[380353668,1755700355367,-425.08,0.00031506,120]
[380353669,1755700355419,-1544.03,0.00031506,120]
[380353670,1755700355470,-2066.97,0.00031506,120]
[380353671,1755700355529,-400.0,0.00031506,120]
[380353672,1755700355595,-400.0,0.00031506,120]
[380353673,1755700355657,-1722.47,0.00031506,120]
[380353674,1755700355711,-400.0,0.00031506,120]
[380353675,1755700355764,-2150.63,0.00031506,120]
[380353676,1755700355816,-1072.65,0.00031506,120]
[380353677,1755700355868,-400.0,0.00031506,120]
[380353678,1755700355922,-400.0,0.00031506,120]
[380353679,1755700355974,-1412.53,0.00031506,120]
[380353680,1755700356026,-1626.0,0.00031506,120]
[380353681,1755700356077,-1231.62,0.00031506,120]
[380353682,1755700356461,-2904.15,0.00031506,120]
[380353683,1755700356512,-2021.92,0.00031506,120]
[380353684,1755700356561,-400.0,0.00031506,120]
[380353685,1755700356611,-1747.42,0.00031506,120]
[380353686,1755700356660,-400.0,0.00031506,120]
[380353687,1755700356710,-1257.16,0.00031506,120]
[380353688,1755700356758,-1051.37,0.00031506,120]
[380353689,1755700356807,-1521.16,0.00031506,120]
[380353690,1755700356856,-1646.99,0.00031506,120]
[380353691,1755700356905,-492.24,0.00031506,120]
[380353692,1755700356954,-400.0,0.00031506,120]
[380353693,1755700357001,-400.0,0.00031506,120]
[380353694,1755700357051,-1815.85,0.00031506,120]
[380353695,1755700357102,-400.0,0.00031506,120]
[380353696,1755700357152,-400.0,0.00031506,120]
[380353697,1755700357202,-1360.39,0.00031506,120]
[380353698,1755700357253,-2141.63,0.00031506,120]
[380353699,1755700357302,-400.0,0.00031506,120]
[380353700,1755700357352,-400.0,0.00031506,120]
[380353701,1755700357402,-1458.12,0.00031506,120]
[380353702,1755700357450,-1049.68,0.00031506,120]
[380353703,1755700357498,-400.0,0.00031506,120]
[380353704,1755700357548,-400.0,0.00031506,120]
[380353705,1755700357597,-400.0,0.00031506,120]
[380353706,1755700357643,-1005.32,0.00031506,120]
[380353707,1755700357696,-3717.05,0.00031506,120]
[380353708,1755700357744,-2150.02,0.00031506,120]
[380353709,1755700357793,-1449.6,0.00031506,120]
[380353710,1755700357844,-400.0,0.00031506,120]
[380353711,1755700357899,-400.0,0.00031506,120]
[380353712,1755700357949,-1175.46,0.00031506,120]
[380353713,1755700358000,-3065.6,0.00031506,120]
[380353714,1755700358054,-400.0,0.00031506,120]
[380353715,1755700358106,-400.0,0.00031506,120]
[380353716,1755700358159,-400.0,0.00031506,120]
[380353717,1755700358212,-1076.71,0.00031506,120]
[380353718,1755700358264,-400.0,0.00031506,120]
[380353719,1755700358316,-1045.35,0.00031506,120]
[380353720,1755700358368,-574.48,0.00031506,120]
[380353721,1755700358418,-849.92,0.00031506,120]
[380353722,1755700358469,-400.0,0.00031506,120]
[380353723,1755700358519,-690.82,0.00031506,120]
[380353724,1755700358572,-2083.85,0.00031506,120]
[380353725,1755700358622,-3969.05,0.00031506,120]
[380353726,1755700358674,-1954.83,0.00031506,120]
[380353727,1755700358724,-1350.03,0.00031506,120]
[380353728,1755700358773,-400.0,0.00031506,120]
[380353729,1755700358824,-400.0,0.00031506,120]
[380353730,1755700358873,-404.82,0.00031506,120]
[380353731,1755700358923,-292.20901582,0.00031506,120]
[380353732,1755700358975,-2260.72,0.00031506,120]
[380353733,1755700359027,-1572.81,0.00031506,120]
[380353734,1755700359086,-964.9,0.00031506,120]
[380353735,1755700359148,-1057.72,0.00031506,120]
[380353736,1755700359207,-400.0,0.00031506,120]
[380353737,1755700359258,-1849.28,0.00031506,120]
[380353738,1755700359307,-1287.79,0.00031506,120]
[380353739,1755700359362,-400.0,0.00031506,120]
[380353740,1755700359419,-2146.59,0.00031506,120]
[380353741,1755700359473,-400.0,0.00031506,120]
[380353742,1755700359527,-2312.24,0.00031506,120]
[380353743,1755700359583,-1393.92,0.00031506,120]
[380353744,1755700359642,-1401.31,0.00031506,120]
[380353745,1755700359696,-1046.53,0.00031506,120]
[380353746,1755700359747,-217.56969551,0.00031506,120]
[380353747,1755700359798,-490.32,0.00031506,120]
[380353748,1755700359857,-1337.1,0.00031506,120]
[380353749,1755700359911,-1109.75,0.00031506,120]
[380353750,1755700359965,-5666.59,0.00031506,120]
[380353751,1755700360016,-400.0,0.00031506,120]
[380353752,1755700360066,-1954.65,0.00031506,120]
[380353753,1755700360117,-4175.16,0.00031506,120]
[380353754,1755700360165,-1192.5,0.00031506,120]
[380353755,1755700360219,-400.0,0.00031506,120]
[380353756,1755700360267,-400.0,0.00031506,120]
[380353757,1755700360317,-777.94,0.00031506,120]
[380353758,1755700360369,-1090.09,0.00031506,120]
[380353759,1755700360419,-310.36107906,0.00031506,120]
[380353760,1755700360469,-1888.82,0.00031506,120]
[380353761,1755700360520,-1651.59,0.00031506,120]
[380353762,1755700360571,-2523.96,0.00031506,120]
[380353763,1755700360622,-1351.77,0.00031506,120]
[380353764,1755700360673,-400.0,0.00031506,120]
[380353765,1755700360722,-651.77,0.00031506,120]
[380353766,1755700360772,-400.0,0.00031506,120]
[380353767,1755700360821,-400.0,0.00031506,120]
[380353768,1755700360872,-1415.48,0.00031506,120]
[380353769,1755700360919,-1141.58,0.00031506,120]
[380353770,1755700360970,-208.21263718,0.00031506,120]
[380353771,1755700361019,-1063.5,0.00031506,120]
[380353772,1755700361071,-400.0,0.00031506,120]
[380353773,1755700361125,-400.0,0.00031506,120]
[380353774,1755700361178,-1461.68,0.00031506,120]
[380353775,1755700361232,-1185.59,0.00031506,120]
[380353776,1755700361285,-987.19,0.00031506,120]
[380353777,1755700361336,-1509.63,0.00031506,120]
[380353778,1755700361386,-400.0,0.00031506,120]
[380353779,1755700361435,-516.50078386,0.00031506,120]
[380353780,1755700361484,-1670.68,0.00031506,120]
[380353781,1755700361530,-2318.62,0.00031506,120]
[380353782,1755700361577,-1195.06,0.00031506,120]
[380353783,1755700361627,-400.0,0.00031506,120]
[380353784,1755700361675,-1584.03,0.00031506,120]
[380353785,1755700361724,-400.0,0.00031506,120]
[380353786,1755700361772,-400.0,0.00031506,120]
[380353787,1755700361820,-888.43,0.00031506,120]
[380353788,1755700361869,-400.0,0.00031506,120]
[380353789,1755700361919,-1716.91,0.00031506,120]
[380353790,1755700361970,-882.98,0.00031506,120]
[380353791,1755700362020,-850.08,0.00031506,120]
[380353792,1755700362071,-1059.98,0.00031506,120]
[380353793,1755700362121,-400.0,0.00031506,120]
[380353794,1755700362174,-400.0,0.00031506,120]
[380353795,1755700362228,-1223.83,0.00031506,120]
[380353796,1755700362280,-1093.8,0.00031506,120]
[380353797,1755700362330,-400.0,0.00031506,120]
[380353798,1755700362638,-1062.6,0.00031506,120]
[380353799,1755700362687,-1380.64,0.00031506,120]
[380353800,1755700362739,-1329.25,0.00031506,120]
[380353801,1755700362787,-400.0,0.00031506,120]
[380353802,1755700362835,-400.0,0.00031506,120]
[380353803,1755700362891,-400.0,0.00031506,120]
[380353804,1755700362943,-405.04,0.00031506,120]
[380353805,1755700362992,-1319.34,0.00031506,120]
[380353806,1755700363044,-1366.95,0.00031506,120]
[380353807,1755700363097,-1256.94,0.00031506,120]
[380353808,1755700363155,-1427.7,0.00031506,120]
[380353809,1755700363208,-1219.11,0.00031506,120]
[380353810,1755700363263,-900.64,0.00031506,120]
[380353811,1755700363314,-550.58,0.00031506,120]
[380353812,1755700363363,-400.0,0.00031506,120]
[380353813,1755700363414,-400.0,0.00031506,120]
[380353814,1755700363463,-400.0,0.00031506,120]
[380353815,1755700363514,-400.0,0.00031506,120]
[380353816,1755700363565,-596.52,0.00031506,120]
[380353817,1755700363615,-1625.15,0.00031506,120]
[380353818,1755700363664,-1235.79,0.00031506,120]
[380353819,1755700363717,-400.0,0.00031506,120]
[380353820,1755700363766,-2036.03,0.00031506,120]
[380353821,1755700363815,-4322.84,0.00031506,120]
[380353822,1755700363867,-1322.22,0.00031506,120]
[380353823,1755700363919,-4566.82,0.00031506,120]
[380353824,1755700363968,-1677.08,0.00031506,120]
[380353825,1755700364019,-1457.3,0.00031506,120]
[380353826,1755700364069,-400.0,0.00031506,120]
[380353827,1755700364120,-774.8,0.00031506,120]
[380353828,1755700364171,-400.0,0.00031506,120]
[380353829,1755700364224,-1147.0,0.00031506,120]
[380353830,1755700364276,-400.0,0.00031506,120]
[380353831,1755700364329,-632.18,0.00031506,120]
[380353832,1755700364380,-400.0,0.00031506,120]
[380353833,1755700364432,-3215.76,0.00031506,120]
[380353834,1755700364484,-891.52,0.00031506,120]
[380353835,1755700364536,-965.61,0.00031506,120]
[380353836,1755700364587,-836.71,0.00031506,120]
[380353837,1755700364640,-4159.08,0.00031506,120]
[380353838,1755700364689,-400.0,0.00031506,120]
[380353839,1755700364740,-1921.66,0.00031506,120]
[380353840,1755700364791,-979.77,0.00031506,120]
[380353841,1755700364842,-400.0,0.00031506,120]
[380353842,1755700364898,-725.45,0.00031506,120]
[380353843,1755700364957,-988.36,0.00031506,120]
[380353844,1755700365008,-400.0,0.00031506,120]
[380353845,1755700365061,-400.0,0.00031506,120]
[380353846,1755700365116,-1048.22,0.00031506,120]
[380353847,1755700365170,-1250.56,0.00031506,120]
[380353848,1755700365224,-400.0,0.00031506,120]
[380353849,1755700365278,-1629.79,0.00031506,120]
[380353850,1755700365333,-856.89,0.00031506,120]
[380353851,1755700365387,-430.083725,0.00031506,120]
[380353852,1755700365440,-2302.35,0.00031506,120]
[380353853,1755700365492,-587.24,0.00031506,120]
[380353854,1755700365544,-400.0,0.00031506,120]
[380353855,1755700365598,-2205.01,0.00031506,120]
[380353856,1755700365652,-400.0,0.00031506,120]
[380353857,1755700365705,-4746.52,0.00031506,120]
[380353858,1755700365757,-483.51,0.00031506,120]
[380353859,1755700365809,-400.0,0.00031506,90]
[380353860,1755700365861,-400.0,0.00031506,120]
[380353861,1755700365910,-1033.58,0.00031506,120]
[380353862,1755700365963,-1518.06,0.00031506,60]
[380353863,1755700366014,-554.54,0.00031506,120]
[380353864,1755700366070,-400.0,0.00031506,120]
[380353865,1755700366124,-938.32,0.00031506,120]
[380353866,1755700366177,-1148.26,0.00031506,120]
[380353867,1755700366232,-2875.34,0.00031506,120]
[380353868,1755700366289,-400.0,0.00031506,120]
[380353869,1755700366343,-1222.0,0.00031506,120]
[380353870,1755700366398,-1222.92,0.00031506,120]
[380353871,1755700366451,-1453.11,0.00031506,120]
[380353872,1755700366504,-400.0,0.00031506,120]
[380353873,1755700366555,-1189.39,0.00031506,120]
[380353874,1755700366607,-400.0,0.00031506,120]
[380353875,1755700366659,-400.0,0.00031506,120]
[380353876,1755700366711,-3504.83,0.00031506,120]
[380353877,1755700366762,-400.0,0.00031506,120]
[380353878,1755700366812,-493.6,0.00031506,120]
[380353879,1755700366866,-400.0,0.00031506,120]
[380353880,1755700366917,-400.0,0.00031506,120]
[380353881,1755700366970,-400.0,0.00031506,120]
[380353882,1755700367022,-1746.86,0.00031506,120]
[380353883,1755700367076,-400.0,0.00031506,120]
[380353884,1755700367129,-1428.29,0.00031506,120]
[380353885,1755700367182,-1168.29,0.00031506,120]
[380353886,1755700367233,-285.347596,0.00031506,120]
[380353887,1755700367287,-1895.84,0.00031506,120]
[380353888,1755700367341,-400.0,0.00031506,120]
[380353889,1755700367396,-400.0,0.00031506,120]
[380353890,1755700367452,-1235.33,0.00031506,120]
[380353891,1755700367509,-400.0,0.00031506,120]
[380353892,1755700367573,-1374.42,0.00031506,120]
[380353893,1755700367633,-1021.76,0.00031506,120]
[380353894,1755700367688,-400.0,0.00031506,120]
[380353895,1755700367742,-400.0,0.00031506,120]
[380353896,1755700367794,-1172.69,0.00031506,120]
[380353897,1755700367847,-1460.31,0.00031506,120]
[380353898,1755700367906,-400.0,0.00031506,120]
[380353899,1755700367957,-400.0,0.00031506,120]
[380353900,1755700368009,-4644.94,0.00031506,120]
[380353901,1755700368062,-400.0,0.00031506,120]
[380353902,1755700368117,-504.27,0.00031506,120]
[380353903,1755700368171,-535.5,0.00031506,120]
[380353904,1755700368227,-1186.21,0.00031506,120]
[380353905,1755700368281,-1455.68,0.00031506,120]
[380353906,1755700368335,-732.83,0.00031506,120]
[380353907,1755700368388,-1357.14,0.00031506,120]
[380353908,1755700368440,-400.0,0.00031506,120]
[380353909,1755700368491,-400.0,0.00031506,120]
[380353910,1755700368544,-1726.21,0.00031506,120]
[380353911,1755700368601,-2102.58,0.00031506,120]
[380353912,1755700368656,-400.0,0.00031506,120]
[380353913,1755700369067,-2579.09,0.00031506,120]
[380353914,1755700369121,-1648.88,0.00031506,120]
[380353915,1755700369175,-1089.34,0.00031506,120]
[380353916,1755700369232,-888.5,0.00031506,120]
[380353917,1755700369288,-1271.31,0.00031506,120]
[380353918,1755700369340,-400.0,0.00031506,120]
[380353919,1755700369411,-454.37,0.00031506,120]
[380353920,1755700369464,-1843.08,0.00031506,120]
[380353921,1755700369512,-2559.38,0.00031506,120]
[380353922,1755700369561,-1459.02,0.00031506,120]
[380353923,1755700369612,-400.0,0.00031506,120]
[380353924,1755700369663,-400.0,0.00031506,120]
[380353925,1755700369712,-2008.0,0.00031506,120]
[380353926,1755700369764,-1258.12,0.00031506,120]
[380353927,1755700369814,-2212.32,0.00031506,120]
[380353928,1755700369866,-697.15,0.00031506,120]
[380353929,1755700369921,-534.3620195,0.00031506,120]
[380353930,1755700369978,-2348.17,0.00031506,120]
[380353931,1755700370031,-2511.82,0.00031506,120]
[380353932,1755700370084,-7676.64,0.00031506,120]
[380353933,1755700370137,-433.07,0.00031506,120]
[380353934,1755700370190,-1338.65,0.00031506,120]
[380353935,1755700370242,-400.0,0.00031506,120]
[380353936,1755700370294,-163.1110196,0.00031506,120]
[380353937,1755700370350,-827.06,0.00031506,120]
[380353938,1755700370409,-400.0,0.00031506,120]
[380353939,1755700370464,-400.0,0.00031506,120]
[380353940,1755700370520,-2048.44,0.00031506,120]
[380353941,1755700370574,-1065.0,0.00031506,120]
[380353942,1755700370632,-2815.28,0.00031506,120]
[380353943,1755700370687,-462.08,0.00031506,120]
[380353944,1755700370744,-400.0,0.00031506,120]
[380353945,1755700370797,-582.77,0.00031506,120]
[380353946,1755700370852,-1000.0,0.00031507,120]
[380353947,1755700370913,-150.0,0.00031521,120]
[380353948,1755700370971,-150.0,0.00031602,120]
[380353949,1755700371030,-150.0,0.00031641,120]
[380353950,1755700371092,-150.0,0.00031777,120]
[380353951,1755700371154,-500.0,0.0003178,60]
[380353952,1755700371217,-554.0,0.0003178,60]
[380353953,1755700371275,-500.0,0.0003178,60]
[380353954,1755700371333,-686.03,0.0003178,120]
[380353955,1755700371392,-981.13,0.0003178,60]
[380353956,1755700371451,-1021.58,0.0003178,120]
[380353957,1755700371509,-1394.51,0.0003178,120]
[380353958,1755700371567,-1472.86,0.0003178,120]
[380353959,1755700371626,-2200.62,0.0003178,120]
[380353960,1755700371685,-470.12363727,0.0003178,120]
[380353961,1755700371745,-400.0,0.0003178,120]
[380353962,1755700371804,-400.0,0.0003178,120]
[380353963,1755700371865,-454.8,0.0003178,120]
[380353964,1755700371923,-704.4,0.0003178,120]
[380353965,1755700371981,-1508.72,0.0003178,120]
[380353966,1755700372039,-1684.25,0.0003178,120]
[380353967,1755700372099,-807.75,0.0003178,120]
[380353968,1755700372159,-400.0,0.0003178,120]
[380353969,1755700372217,-436.83,0.0003178,120]
[380353970,1755700372277,-706.35,0.0003178,120]
[380353971,1755700372337,-400.0,0.0003178,120]
[380353972,1755700372421,-400.0,0.0003178,120]
[380353973,1755700372481,-477.33,0.0003178,120]
[380353974,1755700372538,-654.03,0.0003178,120]
[380353975,1755700372597,-1740.22,0.0003178,120]
[380353976,1755700372657,-400.0,0.0003178,120]
[380353977,1755700372716,-2506.94,0.0003178,120]
[380353978,1755700372774,-455.02,0.0003178,120]
[380353979,1755700372830,-495.38,0.0003178,120]
[380353980,1755700372896,-400.0,0.0003178,120]
[380353981,1755700372960,-480.05,0.0003178,120]
[380353982,1755700373022,-1387.18,0.0003178,120]
[380353983,1755700373081,-400.0,0.0003178,120]
[380353984,1755700373140,-1628.02,0.0003178,120]
[380353985,1755700373199,-400.0,0.0003178,120]
[380353986,1755700373256,-1247.37,0.0003178,120]
[380353987,1755700373313,-400.0,0.0003178,120]
[380353988,1755700373369,-357.58563324,0.0003178,120]
[380353989,1755700373425,-1058.71,0.0003178,120]
[380353990,1755700373483,-604.21,0.0003178,120]
[380353991,1755700373540,-400.0,0.0003178,120]
[380353992,1755700373595,-1501.66,0.0003178,120]
[380353993,1755700373651,-400.0,0.0003178,120]
[380353994,1755700373705,-400.0,0.0003178,120]
[380353995,1755700373758,-400.0,0.0003178,120]
[380353996,1755700373811,-970.36,0.0003178,120]
[380353997,1755700373866,-400.0,0.0003178,120]
[380353998,1755700373917,-400.0,0.0003178,120]
[380353999,1755700373970,-400.0,0.0003178,120]
[380354000,1755700374021,-1076.85,0.0003178,120]
[380354001,1755700374071,-1405.17,0.0003178,120]
[380354002,1755700374124,-1026.4,0.0003178,120]
[380354003,1755700374177,-574.78,0.0003178,120]
[380354004,1755700374229,-400.0,0.0003178,120]
[380354005,1755700374284,-1522.73,0.0003178,120]
[380354006,1755700374346,-665.34,0.0003178,120]
[380354007,1755700374409,-445.92,0.0003178,120]
[380354008,1755700374462,-400.0,0.0003178,120]
[380354009,1755700374517,-1308.29,0.0003178,120]
[380354010,1755700374577,-458.47,0.0003178,120]
[380354011,1755700374634,-400.0,0.0003178,120]
[380354012,1755700374698,-752.7,0.0003178,120]
[380354013,1755700374753,-400.0,0.0003178,120]
[380354014,1755700374803,-575.76,0.0003178,120]
[380354015,1755700374857,-1514.99,0.0003178,120]
[380354016,1755700374915,-228.26692786,0.0003178,120]
[380354017,1755700374967,-638.38,0.0003178,120]
[380354018,1755700375018,-1224.66,0.0003178,120]
[380354019,1755700375071,-400.0,0.0003178,120]
[380354020,1755700375123,-400.0,0.0003178,120]
[380354021,1755700375176,-572.95,0.0003178,120]
[380354022,1755700375231,-400.0,0.0003178,120]
[380354023,1755700375284,-400.0,0.0003178,120]
[380354024,1755700375336,-801.51,0.0003178,120]
[380354025,1755700375389,-400.0,0.0003178,120]
[380354026,1755700375448,-645.79,0.0003178,120]
[380354027,1755700375504,-651.33,0.0003178,120]
[380354028,1755700375878,-418.53,0.0003178,120]
[380354029,1755700375934,-400.0,0.0003178,120]
[380354030,1755700375991,-1238.53,0.0003178,120]
[380354031,1755700376044,-401.22,0.0003178,120]
[380354032,1755700376099,-1075.44,0.0003178,120]
[380354033,1755700376163,-400.0,0.0003178,120]
[380354034,1755700376217,-400.0,0.0003178,120]
[380354035,1755700376269,-517.66,0.0003178,120]
[380354036,1755700376323,-1026.94,0.0003178,120]
[380354037,1755700376375,-949.71,0.0003178,120]
[380354038,1755700376426,-877.05,0.0003178,120]
[380354039,1755700376476,-520.99,0.0003178,120]
[380354040,1755700376525,-1284.16,0.0003178,120]
[380354041,1755700376572,-734.16,0.0003178,120]
[380354042,1755700376619,-400.0,0.0003178,120]
[380354043,1755700376664,-400.0,0.0003178,120]
[380354044,1755700376709,-522.69,0.0003178,120]
[380354045,1755700376756,-873.41,0.0003178,120]
[380354046,1755700376800,-2382.06,0.0003178,120]
[380354047,1755700376844,-400.0,0.0003178,120]
[380354048,1755700376891,-400.0,0.0003178,120]
[380354049,1755700376936,-400.0,0.0003178,120]
[380354050,1755700376981,-1947.95,0.0003178,120]
[380354051,1755700377026,-569.22,0.0003178,120]
[380354052,1755700377070,-400.0,0.0003178,120]
[380354053,1755700377117,-1388.88,0.0003178,120]
[380354054,1755700377161,-1614.75,0.0003178,120]
[380354055,1755700377207,-1067.56,0.0003178,120]
[380354056,1755700377251,-807.29,0.0003178,120]